fUST/lending_fUST_20240226
["ID","MTS","AMOUNT","RATE_DAILY","PERIOD"]
[315185093,1708912240304,-500.0,0.00019178,2]
[315185095,1708912240314,-2881.22,0.00019178,2]
[315185097,1708912240323,-500.0,0.00019178,2]
[315185099,1708912240332,-500.67937489,0.00019178,2]
[315185101,1708912240340,-500.0,0.00019178,2]
[315185103,1708912240349,-10744.63,0.00019178,2]
[315185105,1708912240358,-500.96654659,0.00019178,2]
[315185107,1708912240367,-501.64488401,0.00019178,2]
[315185109,1708912240376,-368.55067157,0.00019178,2]
[315185110,1708912240387,-500.0,0.00019178,2]
[315185112,1708912240396,-4021.07,0.00019178,2]
[315185114,1708912240405,-500.0,0.00019178,2]
[315185116,1708912240415,-501.8932573,0.00019178,2]
[315185118,1708912240424,-177.56440176,0.00019178,2]
[315185121,1708912240433,-1000.0,0.00019178,2]
[315185123,1708912240442,-501.32076136,0.00019178,2]
[315185124,1708912240451,-500.0,0.00019178,2]
[315185126,1708912240460,-500.0,0.00019178,2]
[315185128,1708912240469,-500.0,0.00019178,2]
[315185130,1708912240478,-212.2436076,0.00019178,2]
[315185132,1708912240488,-500.0,0.00019178,2]
[315185135,1708912240497,-500.0,0.00019178,2]
[315185136,1708912240506,-500.60414971,0.00019178,2]
[315185138,1708912240515,-500.0,0.00019178,2]
[315185140,1708912240524,-500.0,0.00019178,2]
[315185142,1708912240533,-500.0,0.00019178,2]
[315185144,1708912240542,-500.39979083,0.00019178,2]
[315185146,1708912240551,-500.0,0.00019178,2]
[315185148,1708912240560,-1910.36,0.00019178,2]
[315185150,1708912240569,-501.23926151,0.00019178,2]
[315185152,1708912240578,-605.56,0.00019178,2]
[315185154,1708912240587,-2522.96,0.00019178,2]
[315185156,1708912240596,-500.0,0.00019178,2]
[315185158,1708912240605,-500.0,0.00019178,2]
[315185160,1708912240614,-200.0,0.00019178,2]
[315185162,1708912240623,-500.0,0.00019178,2]
[315185164,1708912240632,-2071.58,0.00019178,2]
[315185177,1708912240745,-500.0,0.00019178,2]
[315185179,1708912240754,-500.60648921,0.00019178,2]
[315185181,1708912240763,-500.0,0.00019178,2]
[315185183,1708912240773,-500.89846899,0.00019178,2]
[315185185,1708912240782,-500.0,0.00019178,2]
[315185187,1708912240792,-506.6715186,0.00019178,2]
[315185189,1708912240801,-500.0,0.00019178,2]
[315185191,1708912240810,-500.0,0.00019178,2]
[315185193,1708912240819,-1901.16,0.00019178,2]
[315185195,1708912240828,-500.0,0.00019178,2]
[315185197,1708912240836,-500.0,0.00019178,2]
[315185199,1708912240846,-500.0,0.00019178,2]
[315185201,1708912240855,-500.0,0.00019178,2]
[315185203,1708912240864,-500.0,0.00019178,2]
[315185205,1708912240873,-500.0,0.00019178,2]
[315185207,1708912240883,-500.0,0.00019178,2]
[315185209,1708912240893,-500.0,0.00019178,2]
[315185211,1708912240905,-500.0,0.00019178,2]
[315185213,1708912240915,-500.0,0.00019178,2]
[315185215,1708912240926,-500.0,0.00019178,2]
[315185217,1708912240935,-21597.43,0.00019178,2]
[315185219,1708912240946,-500.0,0.00019178,2]
[315185221,1708912240955,-500.0,0.00019178,2]
[315185223,1708912240964,-500.0,0.00019178,2]
[315185225,1708912240973,-659.02,0.00019178,2]
[315185227,1708912240983,-500.0,0.00019178,2]
[315185229,1708912240992,-501.91998645,0.00019178,2]
[315185231,1708912241001,-501.00174819,0.00019178,2]
[315185233,1708912241010,-500.0,0.00019178,2]
[315185235,1708912241020,-500.0,0.00019178,2]
[315185237,1708912241029,-500.73988973,0.00019178,2]
[315185239,1708912241038,-500.74176148,0.00019178,2]
[315185241,1708912241047,-500.0,0.00019178,2]
[315185243,1708912241056,-500.0,0.00019178,2]
[315185245,1708912241066,-500.0,0.00019178,2]
[315185247,1708912241075,-500.0,0.00019178,2]
[315185249,1708912241085,-500.0,0.00019178,2]
[315185251,1708912241094,-500.0,0.00019178,2]
[315185253,1708912241103,-500.63508727,0.00019178,2]
[315185255,1708912241113,-500.0,0.00019178,2]
[315185257,1708912241122,-500.0,0.00019178,2]
[315185259,1708912241131,-234.57397735,0.00019178,2]
[315185261,1708912241141,-2128.1,0.00019178,2]
[315185263,1708912241150,-500.76681216,0.00019178,2]
[315185265,1708912241159,-500.0,0.00019178,2]
[315185267,1708912241168,-500.0,0.00019178,2]
[315185269,1708912241178,-500.0,0.00019178,2]
[315185271,1708912241187,-359.8403748,0.00019178,2]
[315185273,1708912241196,-501.0884164,0.00019178,2]
[315185275,1708912241205,-500.0,0.00019178,2]
[315185276,1708912241214,-603.75,0.00019178,2]
[315185278,1708912241223,-500.43891054,0.00019178,2]
[315185280,1708912241232,-501.53195024,0.00019178,2]
[315185282,1708912241241,-500.0,0.00019178,2]
[315185284,1708912241250,-500.3462092,0.00019178,2]
[315185286,1708912241259,-1752.81,0.00019178,2]
[315185288,1708912241268,-500.0,0.00019178,2]
[315185289,1708912241278,-500.0,0.00019178,2]
[315185291,1708912241288,-500.0,0.00019178,2]
[315185293,1708912241297,-500.0,0.00019178,2]
[315185295,1708912241306,-3348.36,0.00019178,2]
[315185297,1708912241315,-500.0,0.00019178,2]
[315185299,1708912241325,-782.71,0.00019178,2]
[315185301,1708912241334,-500.0,0.00019178,2]
[315185303,1708912241343,-625.93045909,0.00019178,2]
[315185305,1708912241352,-500.0,0.00019178,2]
[315185307,1708912241361,-8169.46,0.00019178,2]
[315185309,1708912241371,-1532.95,0.00019178,2]
[315185311,1708912241379,-500.0,0.00019178,2]
[315185313,1708912241389,-2474.54,0.00019178,2]
[315185315,1708912241399,-500.0,0.00019178,2]
[315185317,1708912241407,-500.0,0.00019178,2]
[315185319,1708912241416,-500.0,0.00019178,2]
[315185321,1708912241425,-11247.4,0.00019178,2]
[315185323,1708912241434,-500.0,0.00019178,2]
[315185325,1708912241443,-22994.4,0.00019178,2]
[315185327,1708912241452,-500.0,0.00019178,2]
[315185328,1708912241461,-1573.02,0.00019178,2]
[315185330,1708912241470,-500.0,0.00019178,2]
[315185331,1708912241479,-3101.38,0.00019178,2]
[315185332,1708912241488,-501.43084547,0.00019178,2]
[315185333,1708912241498,-500.0,0.00019178,2]
[315185334,1708912241507,-500.0,0.00019178,2]
[315185335,1708912241516,-501.13519098,0.00019178,2]
[315185336,1708912241526,-500.0,0.00019178,2]
[315185337,1708912241535,-4559.37,0.00019178,2]
[315185338,1708912241544,-1255.8,0.00019178,2]
[315185339,1708912241553,-500.0,0.00019178,2]
[315185340,1708912241562,-500.0,0.00019178,2]
[315185341,1708912241571,-500.0,0.00019178,2]
[315185342,1708912241580,-500.0,0.00019178,2]
[315185343,1708912241589,-266.51557641,0.00019178,2]
[315185344,1708912241599,-3197.4,0.00019178,2]
[315185345,1708912241608,-500.0,0.00019178,2]
[315185346,1708912241617,-500.0,0.00019178,2]
[315185347,1708912241626,-500.0,0.00019178,2]
[315185348,1708912241636,-500.0,0.00019178,2]
[315185349,1708912241646,-500.58116796,0.00019178,2]
[315185350,1708912241654,-1705.87,0.00019178,2]
[315185351,1708912241664,-500.0,0.00019178,2]
[315185352,1708912241673,-500.0,0.00019178,2]
[315185353,1708912241682,-500.52146874,0.00019178,2]
[315185354,1708912241692,-500.0,0.00019178,2]
[315185355,1708912241701,-500.0,0.00019178,2]
[315185356,1708912241710,-500.0,0.00019178,2]
[315185357,1708912241719,-500.0,0.00019178,2]
[315185358,1708912241728,-2188.01,0.00019178,2]
[315185359,1708912241738,-963.98,0.00019178,2]
[315185360,1708912241747,-165.812233,0.00019178,2]
[315185361,1708912241756,-165.531014,0.00019178,2]
[315185362,1708912241765,-166.666666,0.00019178,2]
[315185364,1708912241774,-996.36532076,0.00019261,2]
[315185365,1708912241783,-201.8332448,0.000193,2]
[315185367,1708912241792,-153.0,0.000193,2]
[315185369,1708912241801,-500.0,0.00019451,2]
[315185371,1708912241810,-500.0,0.00019451,2]
[315185373,1708912241819,-500.0,0.00019451,2]
[315185375,1708912241828,-228.85497381,0.00019452,2]
[315185377,1708912241838,-500.0,0.00019452,2]
[315185379,1708912241847,-507.63,0.00019452,2]
[315185381,1708912241856,-500.0,0.00019452,2]
[315185383,1708912241865,-151.0,0.00019452,2]
[315185385,1708912241874,-1370.04,0.00019452,2]
[315185387,1708912241884,-500.0,0.00019452,2]
[315185389,1708912241894,-733.83,0.00019452,2]
[315185391,1708912241903,-500.0,0.00019452,2]
[315185393,1708912241916,-500.0,0.00019452,2]
[315185395,1708912241926,-500.0,0.00019452,2]
[315185397,1708912241935,-500.0,0.00019452,2]
[315185399,1708912241944,-292.12335644,0.00019452,2]
[315185401,1708912241955,-500.0,0.00019452,2]
[315185403,1708912241963,-500.0,0.00019452,2]
[315185405,1708912241973,-501.43459561,0.00019452,2]
[315185407,1708912241981,-501.78402,0.00019452,2]
[315185409,1708912241993,-500.0,0.00019452,2]
[315185410,1708912242002,-500.0,0.00019452,2]
[315185412,1708912242011,-500.0,0.00019452,2]
[315185414,1708912242020,-500.0,0.00019452,2]
[315185416,1708912242029,-500.0,0.00019452,2]
[315185418,1708912242038,-717.15,0.00019452,2]
[315185420,1708912242048,-478.11316382,0.00019452,2]
[315185422,1708912242057,-500.0,0.00019452,2]
[315185424,1708912242066,-500.0,0.00019452,2]
[315185426,1708912242075,-567.44,0.00019452,2]
[315185428,1708912242085,-500.0,0.00019452,2]
[315185430,1708912242094,-500.0,0.00019452,2]
[315185432,1708912242104,-500.0,0.00019452,2]
[315185434,1708912242113,-511.6223273,0.00019452,2]
[315185436,1708912242123,-500.0,0.00019452,2]
[315185438,1708912242132,-500.0,0.00019452,2]
[315185440,1708912242142,-500.0,0.00019452,2]
[315185442,1708912242151,-500.0,0.00019452,2]
[315185444,1708912242161,-500.0,0.00019452,2]
[315185446,1708912242170,-500.0,0.00019452,2]
[315185448,1708912242179,-500.0,0.00019452,2]
[315185450,1708912242189,-500.0,0.00019452,2]
[315185452,1708912242198,-500.0,0.00019452,2]
[315185454,1708912242208,-500.0,0.00019452,2]
[315185456,1708912242217,-500.0,0.00019452,2]
[315185458,1708912242226,-500.0,0.00019452,2]
[315185460,1708912242235,-2110.95,0.00019452,2]
[315185462,1708912242243,-501.43554536,0.00019452,2]
[315185464,1708912242252,-500.0,0.00019452,2]
[315185466,1708912242261,-500.0,0.00019452,2]
[315185468,1708912242270,-1268.27,0.00019452,2]
[315185469,1708912242280,-500.0,0.00019452,2]
[315185471,1708912242289,-500.71576396,0.00019452,2]
[315185473,1708912242298,-500.0,0.00019452,2]
[315185475,1708912242308,-233.39371424,0.00019452,2]
[315185477,1708912242317,-500.0,0.00019452,2]
[315185479,1708912242326,-1648.38,0.00019452,2]
[315185481,1708912242335,-500.0,0.00019452,2]
[315185484,1708912242345,-500.0,0.00019452,2]
[315185486,1708912242353,-501.29954357,0.00019452,2]
[315185488,1708912242362,-500.0,0.00019452,2]
[315185490,1708912242371,-500.0,0.00019452,2]
[315185492,1708912242382,-503.07483176,0.00019452,2]
[315185494,1708912242391,-500.0,0.00019452,2]
[315185496,1708912242401,-405.80118565,0.00019452,2]
[315185498,1708912242410,-500.0,0.00019452,2]
[315185500,1708912242419,-500.0,0.00019452,2]
[315185502,1708912242428,-500.77094281,0.00019452,2]
[315185504,1708912242437,-505.95058571,0.00019452,2]
[315185505,1708912242446,-500.0,0.00019452,2]
[315185507,1708912242455,-500.0,0.00019452,2]
[315185509,1708912242464,-501.82744386,0.00019452,2]
[315185511,1708912242473,-502.79366647,0.00019452,2]
[315185513,1708912242482,-500.0,0.00019452,2]
[315185515,1708912242491,-500.0,0.00019452,2]
[315185517,1708912242500,-500.0,0.00019452,2]
[315185520,1708912242510,-503.89798039,0.00019452,2]
[315185523,1708912242519,-500.0,0.00019452,2]
[315185525,1708912242529,-500.0,0.00019452,2]
[315185527,1708912242538,-500.0,0.00019452,2]
[315185529,1708912242548,-500.0,0.00019452,2]
[315185531,1708912242557,-500.0,0.00019452,2]
[315185533,1708912242566,-1786.32,0.00019452,2]
[315185535,1708912242575,-662.08,0.00019452,2]
[315185537,1708912242584,-977.83,0.00019452,2]
[315185539,1708912242593,-500.0,0.00019452,2]
[315185541,1708912242603,-500.0,0.00019452,2]
[315185543,1708912242612,-711.07,0.00019452,2]
[315185545,1708912242621,-501.18590422,0.00019452,2]
[315185547,1708912242632,-501.22568197,0.00019452,2]
[315185549,1708912242641,-500.85128667,0.00019452,2]
[315185551,1708912242650,-500.0,0.00019452,2]
[315185553,1708912242659,-500.0,0.00019452,2]
[315185555,1708912242668,-500.0,0.00019452,2]
[315185557,1708912242677,-500.0,0.00019452,2]
[315185559,1708912242686,-500.0,0.00019452,2]
[315185561,1708912242696,-500.0,0.00019452,2]
[315185563,1708912242705,-500.0,0.00019452,2]
[315185565,1708912242715,-2881.22,0.00019452,2]
[315185567,1708912242724,-500.0,0.00019452,2]
[315185569,1708912242733,-500.0,0.00019452,2]
[315185571,1708912242742,-10744.63,0.00019452,2]
[315185573,1708912242751,-500.0,0.00019452,2]
[315185575,1708912242760,-4021.07,0.00019452,2]
[315185577,1708912242769,-501.25122817,0.00019452,2]
[315185579,1708912242779,-1000.0,0.00019452,2]
[315185581,1708912242788,-500.0,0.00019452,2]
[315185583,1708912242797,-500.0,0.00019452,2]
[315185585,1708912242807,-487.01483259,0.00019452,2]
[315185587,1708912242816,-502.54323228,0.00019452,2]
[315185589,1708912242825,-548.47261146,0.00019452,2]
[315185591,1708912242835,-501.95527175,0.00019452,2]
[315185592,1708912242844,-502.0457706,0.00019452,2]
[315185593,1708912242854,-500.0,0.00019452,2]
[315185594,1708912242863,-1910.36,0.00019452,2]
[315185595,1708912242872,-500.0,0.00019452,2]
[315185596,1708912242882,-605.56,0.00019452,2]
[315185597,1708912242892,-2522.96,0.00019452,2]
[315185598,1708912242902,-500.0,0.00019452,2]
[315185600,1708912242913,-500.0,0.00019452,2]
[315185601,1708912242922,-249.10033961,0.00019452,2]
[315185602,1708912242931,-2071.58,0.00019452,2]
[315185603,1708912242941,-500.0,0.00019452,2]
[315185604,1708912242950,-500.0,0.00019452,2]
[315185605,1708912242961,-500.0,0.00019452,2]
[315185606,1708912242970,-500.0,0.00019452,2]
[315185607,1708912242981,-500.0,0.00019452,2]
[315185608,1708912242991,-1901.16,0.00019452,2]
[315185609,1708912243001,-500.0,0.00019452,2]
[315185610,1708912243010,-500.81546176,0.00019452,2]
[315185611,1708912243020,-500.0,0.00019452,2]
[315185612,1708912243029,-500.0,0.00019452,2]
[315185613,1708912243039,-501.85263397,0.00019452,2]
[315185614,1708912243048,-501.98549869,0.00019452,2]
[315185615,1708912243058,-500.0,0.00019452,2]
[315185616,1708912243066,-500.0,0.00019452,2]
[315185617,1708912243075,-500.0,0.00019452,2]
[315185618,1708912243084,-500.0,0.00019452,2]
[315185619,1708912243093,-500.0,0.00019452,2]
[315185620,1708912243102,-21597.43,0.00019452,2]
[315185621,1708912243111,-502.06092799,0.00019452,2]
[315185622,1708912243120,-500.0,0.00019452,2]
[315185623,1708912243129,-500.0,0.00019452,2]
[315185624,1708912243139,-659.02,0.00019452,2]
[315185625,1708912243148,-500.0,0.00019452,2]
[315185626,1708912243157,-500.0,0.00019452,2]
[315185627,1708912243166,-500.0,0.00019452,2]
[315185628,1708912243175,-500.0,0.00019452,2]
[315185629,1708912243183,-500.0,0.00019452,2]
[315185630,1708912243192,-2128.1,0.00019452,2]
[315185631,1708912243202,-500.0,0.00019452,2]
[315185632,1708912243211,-502.73999553,0.00019452,2]
[315185633,1708912243219,-436.52101816,0.00019452,2]
[315185634,1708912243325,-501.23396073,0.00019452,2]
[315185635,1708912243334,-603.75,0.00019452,2]
[315185636,1708912243343,-500.0,0.00019452,2]
[315185637,1708912243352,-1752.81,0.00019452,2]
[315185638,1708912243362,-501.16377799,0.00019452,2]
[315185639,1708912243371,-500.0,0.00019452,2]
[315185640,1708912243380,-505.62729352,0.00019452,2]
[315185641,1708912243390,-501.11194188,0.00019452,2]
[315185642,1708912243399,-3348.36,0.00019452,2]
[315185643,1708912243408,-500.0,0.00019452,2]
[315185644,1708912243417,-782.71,0.00019452,2]
[315185645,1708912243426,-500.0,0.00019452,2]
[315185646,1708912243435,-501.17320826,0.00019452,2]
[315185647,1708912243445,-8169.46,0.00019452,2]
[315185648,1708912243454,-1532.95,0.00019452,2]
[315185649,1708912243463,-500.0,0.00019452,2]
[315185650,1708912243471,-2474.54,0.00019452,2]
[315185651,1708912243480,-500.0,0.00019452,2]
[315185652,1708912243489,-500.0,0.00019452,2]
[315185653,1708912243498,-500.0,0.00019452,2]
[315185654,1708912243508,-11247.4,0.00019452,2]
[315185655,1708912243517,-500.0,0.00019452,2]
[315185656,1708912243526,-22994.4,0.00019452,2]
[315185657,1708912243535,-500.0,0.00019452,2]
[315185658,1708912243544,-1573.02,0.00019452,2]
[315185659,1708912243553,-500.0,0.00019452,2]
[315185660,1708912243562,-3101.38,0.00019452,2]
[315185661,1708912243571,-500.0,0.00019452,2]
[315185662,1708912243580,-500.0,0.00019452,2]
[315185663,1708912243590,-421.15243757,0.00019452,2]
[315185664,1708912243598,-4559.37,0.00019452,2]
[315185665,1708912243607,-1255.8,0.00019452,2]
[315185666,1708912243616,-500.0,0.00019452,2]
[315185667,1708912243626,-500.0,0.00019452,2]
[315185668,1708912243636,-500.0,0.00019452,2]
[315185669,1708912243644,-500.0,0.00019452,2]
[315185670,1708912243653,-3197.4,0.00019452,2]
[315185671,1708912243662,-500.0,0.00019452,2]
[315185672,1708912243671,-500.0,0.00019452,2]
[315185673,1708912243680,-500.0,0.00019452,2]
[315185674,1708912243689,-500.0,0.00019452,2]
[315185675,1708912243698,-1705.87,0.00019452,2]
[315185676,1708912243707,-500.0,0.00019452,2]
[315185677,1708912243716,-500.0,0.00019452,2]
[315185678,1708912243725,-500.0,0.00019452,2]
[315185679,1708912243734,-500.0,0.00019452,2]
[315185680,1708912243743,-640.38620748,0.00019452,2]
[315185681,1708912243752,-520.70514631,0.00019452,2]
[315185682,1708912243761,-2188.01,0.00019452,2]
[315185683,1708912243771,-963.98,0.00019452,2]
[315185684,1708912243780,-153.0,0.00019452,2]
[315185685,1708912243789,-7330.41372259,0.00019476,2]
[315185686,1708912243798,-182.85476532,0.0001948,2]
[315185687,1708912243807,-7330.41372259,0.00019485,2]
[315185688,1708912243816,-7330.41372259,0.00019486,2]
[315185689,1708912243826,-182.85476532,0.00019488,2]
[315185690,1708912243835,-182.85476532,0.00019497,2]
[315185691,1708912243844,-200.5569553,0.000195,2]
[315185692,1708912243854,-153.0,0.000195,2]
[315185693,1708912243863,-153.0,0.000195,2]
[315185694,1708912243872,-153.0,0.000195,2]
[315185695,1708912243882,-153.553935,0.000195,2]
[315185696,1708912243891,-200.5826354,0.000195,2]
[315185697,1708912243900,-385.7549351,0.000195,2]
[315185698,1708912243912,-153.0,0.000195,2]
[315185699,1708912243921,-306.0,0.000195,2]
[315185700,1708912243930,-153.0,0.000195,2]
[315185701,1708912243940,-153.0,0.000195,2]
[315185702,1708912243949,-200.5826354,0.000195,2]
[315185703,1708912243959,-153.0,0.000195,2]
[315185704,1708912243968,-200.5826354,0.000195,2]
[315185705,1708912243977,-153.0,0.000195,2]
[315185706,1708912243987,-153.0,0.000195,2]
[315185707,1708912244008,-153.0,0.000195,2]
[315185708,1708912244018,-200.5826354,0.000195,2]
[315185709,1708912244027,-153.0,0.000195,2]
[315185710,1708912244037,-153.0,0.000195,2]
[315185711,1708912244046,-75877.75163095,0.000196,2]
[315185712,1708912244055,-153.6134754,0.000196,2]
[315185713,1708912244065,-153.0,0.000196,2]
[315185714,1708912244074,-153.0,0.000196,2]
[315185715,1708912244084,-153.0,0.000196,2]
[315185716,1708912244093,-199.1891953,0.000196,2]
[315185717,1708912244103,-153.0,0.000196,2]
[315185718,1708912244112,-153.0,0.000196,2]
[315185719,1708912244121,-153.0,0.000196,2]
[315185720,1708912244131,-401.1139106,0.000196,2]
[315185721,1708912244140,-153.0,0.000196,2]
[315185722,1708912244149,-306.0,0.000196,2]
[315185723,1708912244159,-166.666666,0.00019627,2]
[315185724,1708912244168,-153.0,0.000197,2]
[315185725,1708912244177,-153.0,0.000197,2]
[315185726,1708912244187,-153.0,0.000197,2]
[315185727,1708912244196,-200.5569553,0.000197,2]
[315185728,1708912244205,-5529.96122929,0.000197,2]
[315185729,1708912244214,-5529.96122929,0.000197,2]
[315185730,1708912244224,-5529.96122929,0.000197,2]
[315185731,1708912244233,-243.58118859,0.00019725,2]
[315185732,1708912244243,-500.0,0.00019725,2]
[315185733,1708912244253,-200.86010344,0.00019725,2]
[315185734,1708912244263,-500.0,0.00019725,2]
[315185735,1708912244272,-500.0,0.00019725,2]
[315185736,1708912244282,-532.83946543,0.00019725,2]
[315185737,1708912244292,-500.0,0.00019725,2]
[315185738,1708912244301,-500.0,0.00019725,2]
[315185739,1708912244310,-500.0,0.00019725,2]
[315185740,1708912244320,-500.0,0.00019725,2]
[315185741,1708912244330,-398.47343863,0.00019725,2]
[315185742,1708912244340,-243.58118859,0.00019725,2]
[315185743,1708912244349,-500.0,0.00019725,2]
[315185744,1708912244359,-500.0,0.00019725,2]
[315185745,1708912244368,-500.0,0.00019725,2]
[315185746,1708912244378,-500.0,0.00019725,2]
[315185747,1708912244388,-501.59546841,0.00019726,2]
[315185748,1708912244398,-507.63,0.00019726,2]
[315185749,1708912244407,-500.0,0.00019726,2]
[315185750,1708912244416,-151.0,0.00019726,2]
[315185751,1708912244425,-1370.04,0.00019726,2]
[315185752,1708912244434,-500.0,0.00019726,2]
[315185753,1708912244443,-733.83,0.00019726,2]
[315185754,1708912244452,-500.0,0.00019726,2]
[315185755,1708912244461,-502.17659617,0.00019726,2]
[315185756,1708912244470,-500.0,0.00019726,2]
[315185757,1708912244479,-500.0,0.00019726,2]
[315185758,1708912244488,-500.0,0.00019726,2]
[315185759,1708912244497,-500.0,0.00019726,2]
[315185760,1708912244506,-500.0,0.00019726,2]
[315185761,1708912244515,-503.94397976,0.00019726,2]
[315185762,1708912244524,-500.0,0.00019726,2]
[315185763,1708912244534,-500.0,0.00019726,2]
[315185764,1708912244543,-500.0,0.00019726,2]
[315185765,1708912244552,-717.15,0.00019726,2]
[315185766,1708912244561,-500.0,0.00019726,2]
[315185767,1708912244570,-500.0,0.00019726,2]
[315185768,1708912244580,-567.44,0.00019726,2]
[315185769,1708912244589,-500.0,0.00019726,2]
[315185770,1708912244599,-615.71554872,0.00019726,2]
[315185771,1708912244608,-620.48309113,0.00019726,2]
[315185772,1708912244617,-500.0,0.00019726,2]
[315185773,1708912244626,-501.96519836,0.00019726,2]
[315185774,1708912244635,-500.0,0.00019726,2]
[315185775,1708912244645,-500.0,0.00019726,2]
[315185776,1708912244654,-500.0,0.00019726,2]
[315185777,1708912244663,-500.0,0.00019726,2]
[315185778,1708912244673,-500.0,0.00019726,2]
[315185779,1708912244682,-500.0,0.00019726,2]
[315185780,1708912244691,-500.0,0.00019726,2]
[315185781,1708912244700,-500.0,0.00019726,2]
[315185782,1708912244709,-489.08379982,0.00019726,2]
[315185783,1708912244718,-502.33951205,0.00019726,2]
[315185784,1708912244727,-2110.95,0.00019726,2]
[315185785,1708912244737,-501.70449876,0.00019726,2]
[315185786,1708912244746,-500.0,0.00019726,2]
[315185787,1708912244755,-1268.27,0.00019726,2]
[315185788,1708912244764,-502.13232332,0.00019726,2]
[315185789,1708912244773,-501.68754756,0.00019726,2]
[315185790,1708912244782,-500.0,0.00019726,2]
[315185791,1708912244791,-1648.38,0.00019726,2]
[315185792,1708912244800,-500.0,0.00019726,2]
[315185793,1708912244809,-503.8969164,0.00019726,2]
[315185794,1708912244818,-502.01865313,0.00019726,2]
[315185795,1708912244827,-500.0,0.00019726,2]
[315185796,1708912244837,-500.0,0.00019726,2]
[315185797,1708912244846,-500.0,0.00019726,2]
[315185798,1708912244856,-500.0,0.00019726,2]
[315185799,1708912244865,-185.27418586,0.00019726,2]
[315185800,1708912244874,-500.0,0.00019726,2]
[315185801,1708912244884,-646.85521638,0.00019726,2]
[315185802,1708912244893,-501.72333826,0.00019726,2]
[315185803,1708912244902,-500.0,0.00019726,2]
[315185804,1708912244913,-500.0,0.00019726,2]
[315185805,1708912244922,-500.0,0.00019726,2]
[315185806,1708912244932,-239.92493776,0.00019726,2]
[315185807,1708912244941,-500.0,0.00019726,2]
[315185808,1708912244951,-500.0,0.00019726,2]
[315185809,1708912244960,-1786.32,0.00019726,2]
[315185810,1708912244969,-662.08,0.00019726,2]
[315185811,1708912244979,-977.83,0.00019726,2]
[315185812,1708912244988,-500.0,0.00019726,2]
[315185813,1708912244997,-500.0,0.00019726,2]
[315185814,1708912245008,-711.07,0.00019726,2]
[315185815,1708912245017,-500.0,0.00019726,2]
[315185816,1708912245027,-500.0,0.00019726,2]
[315185817,1708912245036,-500.0,0.00019726,2]
[315185818,1708912245045,-500.0,0.00019726,2]
[315185819,1708912245054,-500.0,0.00019726,2]
[315185820,1708912245063,-500.0,0.00019726,2]
[315185821,1708912245073,-500.0,0.00019726,2]
[315185822,1708912245082,-2881.22,0.00019726,2]
[315185823,1708912245091,-501.30905286,0.00019726,2]
[315185824,1708912245100,-500.0,0.00019726,2]
[315185825,1708912245109,-10744.63,0.00019726,2]
[315185826,1708912245118,-500.0,0.00019726,2]
[315185827,1708912245128,-4021.07,0.00019726,2]
[315185828,1708912245138,-1000.0,0.00019726,2]
[315185829,1708912245147,-500.0,0.00019726,2]